Workbook

Sheet How to Use This Tool
A6: How to Use the CSRHub TNFD Calculator | I6: TNFD Threshold Control
I7: Customize your TNFD Materiality Level | J7: 0.85
A8: Background | I8: TNFD Compliance Results
A9: TNFD stands for the Taskforce on Nature Related Financial Disclosures. The goal of the TNFD to provide a global framework for organizations to identify, assess, manage, and disclose nature-related risks and opportunities, so that financial and business decisions support nature-positive outcomes and long-term resilience. | I9: Company Name | J9: ='TNFD Score Overview'!B14 -> GHG emissions | K9: ='TNFD Score Overview'!C14 -> Total spatial footprint | L9: ='TNFD Score Overview'!D14 -> Extent of land/ freshwater/ ocean-use change | M9: ='TNFD Score Overview'!E14 -> Pollutants released to soil split by type | N9: ='TNFD Score Overview'!F14 -> Wastewater discharged | O9: ='TNFD Score Overview'!G14 -> Waste generation and disposal | P9: ='TNFD Score Overview'!H14 -> Plastic pollution | Q9: ='TNFD Score Overview'!I14 -> Non-GHG air pollutants
I10: ='CSRHub Ratings'!B15 -> American Well Corp | J10: ='TNFD Score Overview'!B15 -> 44.2295 | K10: ='TNFD Score Overview'!C15 -> 48.6785 | L10: ='TNFD Score Overview'!D15 -> 49.319 | M10: ='TNFD Score Overview'!E15 -> 48.3725 | N10: ='TNFD Score Overview'!F15 -> 48.8885 | O10: ='TNFD Score Overview'!G15 -> 48.2 | P10: ='TNFD Score Overview'!H15 -> 49.136 | Q10: ='TNFD Score Overview'!I15 -> 47.435
I11: Comparator Average | J11: ='TNFD Score Overview'!B10 -> 56.7745625 | K11: ='TNFD Score Overview'!C10 -> 56.85484375 | L11: ='TNFD Score Overview'!D10 -> 56.5939375 | M11: ='TNFD Score Overview'!E10 -> 57.18425 | N11: ='TNFD Score Overview'!F10 -> 56.784375 | O11: ='TNFD Score Overview'!G10 -> 57.17475 | P11: ='TNFD Score Overview'!H10 -> 56.22871875 | Q11: ='TNFD Score Overview'!I10 -> 57.2966875
I12: Materiality Test | J12: =IF(J10<J11*J7,"Below","Pass") -> Below | K12: =IF(K10<K11*J7,"Below","Pass") -> Pass | L12: =IF(L10<L11*J7,"Below","Pass") -> Pass | M12: =IF(M10<M11*J7,"Below","Pass") -> Below | N12: =IF(N10<N11*J7,"Below","Pass") -> Pass | O12: =IF(O10<O11*J7,"Below","Pass") -> Below | P12: =IF(P10<P11*J7,"Below","Pass") -> Pass | Q12: =IF(Q10<Q11*J7,"Below","Pass") -> Below
A14: 15 Areas of Focus Have Been Mapped to ESG Topics
A15: The TNFD framework groups its disclosure recommendations into 15 topics, aligned with the four TCFD pillars (Governance, Strategy, Risk & Impact Management, Metrics & Targets). We have mapped the 15 TNFD topics to the 12 sustainability-related topics that CSRHub rates. The mapping for is shown on the TNFD Mapping tab. | I15: Company Name | J15: ='TNFD Score Overview'!J14 -> Water withdrawal and consumption from areas of water scarcity | K15: ='TNFD Score Overview'!K14 -> Quantity of high-risk natural commodities sourced from land/ocean/ freshwater | L15: ='TNFD Score Overview'!L14 -> Measures against unintentional introduction of invasive alien species (IAS). | M15: ='TNFD Score Overview'!M14 -> Ecosystem condition | N15: ='TNFD Score Overview'!N14 -> Species extinction risk | O15: ='TNFD Score Overview'!O14 -> Risk | P15: ='TNFD Score Overview'!P14 -> Opportunity
I16: ='CSRHub Ratings'!B15 -> American Well Corp | J16: ='TNFD Score Overview'!J15 -> 50.9795 | K16: ='TNFD Score Overview'!K15 -> 48.6305 | L16: ='TNFD Score Overview'!L15 -> 47.282 | M16: ='TNFD Score Overview'!M15 -> 47.4545 | N16: ='TNFD Score Overview'!N15 -> 48.3155 | O16: ='TNFD Score Overview'!O15 -> 49.79 | P16: ='TNFD Score Overview'!P15 -> 49.79
I17: Comparator Average | J17: ='TNFD Score Overview'!J10 -> 55.75278125 | K17: ='TNFD Score Overview'!K10 -> 56.6710625 | L17: ='TNFD Score Overview'!L10 -> 56.7598125 | M17: ='TNFD Score Overview'!M10 -> 56.7693125 | N17: ='TNFD Score Overview'!N10 -> 56.3884375 | O17: ='TNFD Score Overview'!O10 -> 56.1975 | P17: ='TNFD Score Overview'!P10 -> 56.1975
I18: Materiality Test | J18: =IF(J16<J17*J7,"Below","Pass") -> Pass | K18: =IF(K16<K17*J7,"Below","Pass") -> Pass | L18: =IF(L16<L17*J7,"Below","Pass") -> Below | M18: =IF(M16<M17*J7,"Below","Pass") -> Below | N18: =IF(N16<N17*J7,"Below","Pass") -> Pass | O18: =IF(O16<O17*J7,"Below","Pass") -> Pass | P18: =IF(P16<P17*J7,"Below","Pass") -> Pass
A20: The Enter Company Names Tab
A21: This tab is the starting point. It allows you search the names of the companies you wish to evaluate. Please enter in the date of data you are wanting to evaluate. You can verify the company name in column J. The instructions for matching the correct entity can be found in cells A4-A10.
A26: The TNFD Score Overview Tab
A27: This tab contains an estimate of the relative performance for the studied companies across the 15 TNFD topics areas. The "focus company" is the top and the "comparators" are below it. The comparators average, best, and worst ratings are listed at the top of the sheet. The focus company is excluded.
A30: The CSRHub Ratings Tab
A31: Confirm the date is correct and that it pulled from the Enter Company Names tab when you click "Calculate." The "focus company" is the top and the "comparators" are below it. The comparators average, best and worst ratings are listed at the top of the sheet. The focus company is excluded
D33: .
A34: Set Your Threshold for Materiality and Use the Tool
A35: To the right at the top of this page is the cell to "Customize your TNFD Materiality Level" for this tool. If you want to test if the focus company is in line with the average for its comparators, set the threshold at 100%. If you would accept the focus company being a certain percentage below the average for TNFD topics, set the threshold at the desired percentage and click Calculate. To the right of these instructions, you will see a group of comparisons between the focus company and the average of the comparators. When the focus company fails to meet the threshold you set, you will see a flag that says "Below." When it meets the threshold, the flag will say "Pass."
A44: What to Do, Next?
A45: When the focus company appears likely to fail the materiality test for a particular SASB area, it should consider taking steps to rectify this issue. These steps could include:
A48: 1. Improve policies and practices in the area of concern.
A49: 2. Gather more data to allow better understanding of performance in this area.
A50: 3. Improve reporting to raings groups and share relevant indicators.
A53: CSRHub's ratings are based on the views of hundreds of ratings groups. These groups typically rely on both formal and informal reporting from the entities they cover plus their own internal analysis techniques and models. If necessary, CSRHub can supply additional reports and tools to help improve reporting and strength an entity's engagement with rating sources.
A59: For more information on CSRHub’s methodology, please see www.csrhub.com/csrhub-esg-ratings-methodology.

Sheet Enter Company Names
R1: Controls for Fine Tuning Scope of Search
U2: Name | V2: Ticker | W2: URL | X2: ISIN
A3: Enter The Company Or Companies You Want To Study | N3: NA = Rating or information not available. This can also be due to a company with only partial ratings. We do not provide an overall score for partially rated companies. | R3: Set to include (I) or exclude (X) fully rated, partially rated and/or unrated companies from your search | T3: Fully Rated | U3: I | V3: I | W3: I | X3: I
A4: 1. Enter a company name, part of a company name, or a brand in column B, a ticker into column C, a web URL into column D, and/or an ISIN number into column E. | T4: Partially Rated | U4: I | V4: I | W4: I | X4: I
A5: 2. If the CSRHub name you want does not appear in column J, use the CSRHub name lookup tool (top menu, CSRHub…Company) to paste the right text company name into column J. | T5: Not Rated | U5: I | V5: I | W5: I | X5: I
A6: 3. The data in columns K to Q should help you double check that you have the right name match. The name in column J is the one used automatically on other sheets. | O6: Version: | P6: =CSRHubAPIVersionNumber() -> 3.3 | R6: Changes in the settings above will change the search parameter in cells F13-I13
A7: 4. If you need to lookup more than 30 companies, you can copy the formulas in row 44 down as far as you wish. | O7: Last Content Update: | P7: 2026-03-26
A8: 5. Use column A to store your internal identifier or version of the company name for later reference. You can change the scope of search using the box starting in column R. | O8: Last Code Update: | P8: =CSRHubAPIVersionDate() -> 2025-12-25 | S8: Month | T8: Year
A9: 6. Request a specific Month and Year of data, in cells S9 and T9. Choose Formulas from the top menu, then Calculate Sheet. This will allow our database to update the sheet. | O9: Includes MonetDB Mac Update | R9: Data Date | S9: February | T9: 2026
A10: 7. Enter your CSRHub site credentials (username/password) when directed.
A13: Top Line Summary | C13: =COUNT(N15:N215) & " Companies" -> 17 Companies | E13: Search scope parameters (see Column P) | F13: =IF(AND(U3="I",U4="I",U5="I"),"0",IF(AND(U3="I",U4="X",U5="X"),"1",IF(AND(U3="I",U4="I",U5="X"),"2",IF(AND(U3="X",U4="I",U5="X"),"3",IF(AND(U3="X",U4="X",U5="I"),"4",IF(AND(U3="X",U4="I",U5="I"),"5",IF(AND(U3="I",U4="X",U5="I"),"6","0"))))))) -> 0 | G13: =IF(AND(V3="I",V4="I",V5="I"),"0",IF(AND(V3="I",V4="X",V5="X"),"1",IF(AND(V3="I",V4="I",V5="X"),"2",IF(AND(V3="X",V4="I",V5="X"),"3",IF(AND(V3="X",V4="X",V5="I"),"4",IF(AND(V3="X",V4="I",V5="I"),"5",IF(AND(V3="I",V4="X",V5="I"),"6","0"))))))) -> 0 | H13: 0 | I13: 0 | J13: More instructions and examples are available online. | K13: Ways to Double Check the Name
A14: Internal ID (Optional) | B14: Enter Name | C14: Enter Ticker (No exchange code) | D14: Enter web URL | E14: Enter ISIN | F14: Simple Lookup (NA or blank = didn't work) | G14: Ticker Lookup (NA or blank = didn't work) | H14: URL Lookup (NA or blank = didn't work) | I14: ISIN Lookup (NA or blank = didn't work) | J14: Best Guess (replace using name lookup tool when NA) | K14: Country | L14: City | M14: Ticker | N14: # of Sources | O14: ISIN | P14: Industry | Q14: Overall Ratings
B15: American Well Corp | F15: =csrhubfindcompanyname($B15,0,F$13) -> American Well Corp | G15: =csrhubfindcompanyname($C15,3,G$13) -> NA | H15: =csrhubfindcompanyname($D15,5,H$13) -> NA | I15: =csrhubfindcompanyname($E15,4,I$13) -> NA | J15: =IF(I15="NA",IF(H15="NA",IF(F15="NA",IF(G15= "NA","NA",G15),F15),H15),I15) -> American Well Corp | K15: =csrhubcompanycountry(J15) -> USA | L15: =CSRHubCompanycity(J15) -> Boston | M15: =CSRHubCompanyTicker(J15) -> AMWL | N15: =CSRHubDScount(J15) -> 19 | O15: =csrhubcompanyisin(J15) -> US03044L1052 | P15: =CSRHubCompanyIndustry(J15) -> Healthcare Providers | Q15: =CSRHubRating(J15) -> 50.1109
B16: Pernod Ricard | F16: =csrhubfindcompanyname($B16,0,F$13) -> Pernod Ricard | G16: NA | H16: NA | I16: NA | J16: Pernod Ricard | K16: =csrhubcompanycountry(J16) -> France | L16: =CSRHubCompanycity(J16) -> Paris | M16: =CSRHubCompanyTicker(J16) -> RI | N16: =CSRHubDScount(J16) -> 46 | O16: =csrhubcompanyisin(J16) -> FR0000120693 | P16: =CSRHubCompanyIndustry(J16) -> Beer, Wine, & Distilled Alcoholic Bev. Wholesalers | Q16: =CSRHubRating(J16) -> 64.1691
B17: FILA Fabbrica Italiana Lapis d Affni SpA | F17: =csrhubfindcompanyname($B17,0,F$13) -> FILA Fabbrica Italiana Lapis d Affni SpA | G17: NA | H17: NA | I17: NA | J17: FILA Fabbrica Italiana Lapis d Affni SpA | K17: =csrhubcompanycountry(J17) -> Italy | L17: Milan | M17: FILA | N17: 21 | O17: IT0004967292 | P17: Paper Products | Q17: 55.6931
B18: Coty Inc. | F18: Coty Inc. | G18: NA | H18: NA | I18: NA | J18: Coty Inc. | K18: USA | L18: New York City | M18: COTY | N18: 42 | O18: US2220702037 | P18: Luxury Goods & Cosmetics Manufacturing | Q18: 58.0095
B19: Barnes & Noble, Inc. | F19: Barnes & Noble, Inc. | G19: NA | H19: NA | I19: NA | J19: Barnes & Noble, Inc. | K19: USA | L19: New York City | M19: BKS | N19: 7 | O19: US0677741094 | P19: Wholesale Trade | Q19: 49.4471
B20: 3M Company | F20: 3M Company | G20: NA | H20: NA | I20: NA | J20: 3M Company | K20: USA | L20: Saint Paul | M20: MMM | N20: 80 | O20: US88579Y1010 | P20: Manufacturing | Q20: 57.9277
B21: Newell Rubbermaid Inc. | F21: Newell Rubbermaid Inc. | G21: NA | H21: =csrhubfindcompanyname($D21,5,H$13) -> NA | I21: NA | J21: =IF(I21="NA",IF(H21="NA",IF(F21="NA",IF(G21= "NA","NA",G21),F21),H21),I21) -> Newell Rubbermaid Inc. | K21: USA | L21: Atlanta | M21: NWL | N21: 36 | O21: US6512291062 | P21: Household Products | Q21: 54.3692
B22: Procter & Gamble Company | F22: Procter & Gamble Company | G22: NA | H22: NA | I22: NA | J22: =IF(I22="NA",IF(F22="NA",IF(G22= "NA","NA",G22),F22),I22) -> Procter & Gamble Company | K22: USA | L22: Cincinnati | M22: PG | N22: 95 | O22: US7427181091 | P22: Manufacturing | Q22: 61.5137
B23: Unilever PLC | F23: Unilever PLC | G23: NA | H23: NA | I23: NA | J23: Unilever PLC | K23: United Kingdom | L23: London | M23: ULVR | N23: 93 | O23: GB00B10RZP78 | P23: Household Products | Q23: 64.9321
B24: Church & Dwight Co., Inc. | F24: Church & Dwight Co., Inc. | G24: NA | H24: NA | I24: NA | J24: Church & Dwight Co., Inc. | K24: USA | L24: Princeton | M24: CHD | N24: 49 | O24: US1713401024 | P24: Chemicals, Plastics & Rubber Products Mfg. | Q24: 57.4026
B25: Edgewell Personal Care Company | F25: Edgewell Personal Care Company | G25: NA | H25: NA | I25: NA | J25: Edgewell Personal Care Company | K25: USA | L25: St. Louis | M25: EPC | N25: 30 | O25: US28035Q1022 | P25: Luxury Goods & Cosmetics Manufacturing | Q25: 56.3963
B26: BIC | F26: BIC | G26: NA | H26: NA | I26: NA | J26: BIC | K26: France | L26: Clichy | M26: BB | N26: 29 | O26: FR0000120966 | P26: Manufacturing | Q26: 64.0576
B27: Johnson & Johnson | F27: Johnson & Johnson | G27: NA | H27: NA | I27: NA | J27: Johnson & Johnson | K27: USA | L27: New Brunswick | M27: JNJ | N27: 101 | O27: US4781601046 | P27: Medical Equipment & Supplies Manufacturing | Q27: 63.7564
B28: Amazon.com, Inc. | F28: Amazon.com, Inc. | G28: NA | H28: NA | I28: NA | J28: Amazon.com, Inc. | K28: USA | L28: Seattle | M28: AMZN | N28: 93 | O28: US0231351067 | P28: Electronic Shopping and Mail-Order Houses | Q28: 53.1579
B29: Groupe Danone | F29: Groupe Danone | G29: NA | H29: NA | I29: NA | J29: Groupe Danone | K29: France | L29: Paris | M29: BN | N29: 71 | O29: FR0000120644 | P29: Food Products | Q29: 63.9647
B30: Walmart Inc. | F30: Walmart Inc. | G30: NA | H30: NA | I30: NA | J30: Walmart Inc. | K30: USA | L30: Bentonville | M30: WMT | N30: 94 | O30: US9311421039 | P30: Retail | Q30: 57.7247
B31: Carrefour | F31: Carrefour | G31: NA | H31: NA | I31: NA | J31: Carrefour | K31: France | L31: Levallois-Perret | M31: CA | N31: 54 | O31: FR0000120172 | P31: Supermarket, Food & Beverage Stores | Q31: 61.0866
F32: NA | G32: NA | H32: NA | I32: NA | J32: NA | N32: NA | P32: NA | Q32: NA
F33: NA | G33: NA | H33: NA | I33: NA | J33: NA | N33: NA | P33: NA | Q33: NA
F34: NA | G34: NA | H34: NA | I34: NA | J34: NA | N34: NA | P34: NA | Q34: NA
F35: NA | G35: NA | H35: NA | I35: NA | J35: NA | N35: NA | P35: NA | Q35: NA
F36: NA | G36: NA | H36: NA | I36: NA | J36: NA | N36: NA | P36: NA | Q36: NA
F37: NA | G37: NA | H37: NA | I37: NA | J37: NA | N37: NA | P37: NA | Q37: NA
F38: NA | G38: NA | H38: NA | I38: NA | J38: NA | N38: NA | P38: NA | Q38: NA
F39: NA | G39: NA | H39: NA | I39: NA | J39: NA | N39: NA | P39: NA | Q39: NA
F40: NA | G40: NA | H40: NA | I40: NA | J40: NA | N40: NA | P40: NA | Q40: NA
F41: NA | G41: NA | H41: NA | I41: NA | J41: NA | N41: NA | P41: NA | Q41: NA
F42: NA | G42: NA | H42: NA | I42: NA | J42: NA | N42: NA | P42: NA | Q42: NA
F43: NA | G43: NA | H43: NA | I43: NA | J43: NA | N43: NA | P43: NA | Q43: NA
F44: NA | G44: NA | H44: NA | I44: NA | J44: NA | N44: NA | P44: NA | Q44: NA

Sheet CSRHub Ratings
A4: Subcategory Ratings (0-100, 100 = best)
A5: Instructions for CSRHub TNFD Calculator (Continued)
A6: 1. The company names will pull from the Enter Company Names tab. Verify date is correct when you click Calculate.
A7: 2. Clear out any old ratings numbers (cell C15-N15 and down). When prompted, click "No" to not delete query.
A8: 3. Go to the CSRHub menu (in the green bar up top) and click on the "Rebuild Data on This Sheet" button. Your sheet will refresh. Then click Calculate.
C9: Community | F9: Employees | I9: Environment | L9: Governance
B10: Average Rating | C10: =AVERAGEIF(C16:C215,"<>NA") -> 55.62 | D10: 58.61875 | E10: 55.145 | F10: 53.078125 | G10: 53.8725 | H10: 53.45375 | I10: 57.11125 | J10: 58.52125 | K10: 57.301875 | L10: 55.929375 | M10: 54.7125 | N10: 54.5225
B11: Best Rating | C11: =MAX(C16:C215) -> 61.78 | D11: 65.85 | E11: 63.59 | F11: 59.39 | G11: 62.67 | H11: 61.17 | I11: 63.64 | J11: 68.44 | K11: 65.93 | L11: 60.84 | M11: 60.01 | N11: 59.44
B12: Worst Rating | C12: =MIN(C16:C215) -> 48.03 | D12: 42.21 | E12: 42.2 | F12: 39.88 | G12: 40.94 | H12: 36.99 | I12: 39.54 | J12: 40.46 | K12: 40.89 | L12: 40.6 | M12: 40.94 | N12: 38.59
A13: <==DATA PULLS FROM FIRST TAB==>
A14: Internal ID | B14: COMPANY NAME | C14: ="Community Dev & Philanthropy Rating (" & 'Enter Company Names'!$S$9 & " " & 'Enter Company Names'!$T$9 & ")" -> Community Dev & Philanthropy Rating (February 2026) | D14: ="Human Rights & Supply Chain Rating (" & 'Enter Company Names'!$S$9 & " " & 'Enter Company Names'!$T$9 & ")" -> Human Rights & Supply Chain Rating (February 2026) | E14: ="Product Rating (" & 'Enter Company Names'!$S$9 & " " & 'Enter Company Names'!$T$9 & ")" -> Product Rating (February 2026) | F14: ="Compensation & Benefits Rating (" & 'Enter Company Names'!$S$9 & " " & 'Enter Company Names'!$T$9 & ")" -> Compensation & Benefits Rating (February 2026) | G14: ="Diversity & Labor Rights Rating (" & 'Enter Company Names'!$S$9 & " " & 'Enter Company Names'!$T$9 & ")" -> Diversity & Labor Rights Rating (February 2026) | H14: ="Training, Health & Safety Rating (" & 'Enter Company Names'!$S$9 & " " & 'Enter Company Names'!$T$9 & ")" -> Training, Health & Safety Rating (February 2026) | I14: ="Energy & Climate Change Rating (" & 'Enter Company Names'!$S$9 & " " & 'Enter Company Names'!$T$9 & ")" -> Energy & Climate Change Rating (February 2026) | J14: ="Environment Policy & Reporting Rating (" & 'Enter Company Names'!$S$9 & " " & 'Enter Company Names'!$T$9 & ")" -> Environment Policy & Reporting Rating (February 2026) | K14: ="Resource Management Rating (" & 'Enter Company Names'!$S$9 & " " & 'Enter Company Names'!$T$9 & ")" -> Resource Management Rating (February 2026) | L14: ="Board Rating (" & 'Enter Company Names'!$S$9 & " " & 'Enter Company Names'!$T$9 & ")" -> Board Rating (February 2026) | M14: ="Leadership Ethics Rating (" & 'Enter Company Names'!$S$9 & " " & 'Enter Company Names'!$T$9 & ")" -> Leadership Ethics Rating (February 2026) | N14: ="Transparency & Reporting Rating (" & 'Enter Company Names'!$S$9 & " " & 'Enter Company Names'!$T$9 & ")" -> Transparency & Reporting Rating (February 2026)
B15: ='Enter Company Names'!J15 -> American Well Corp | C15: 49.37 | D15: 52.78 | E15: 50.43 | F15: 43.31 | G15: 42.47 | H15: 45.19 | I15: 40.91 | J15: 44.27 | K15: 51.92 | L15: 50.45 | M15: 52.88 | N15: 49.43
B16: ='Enter Company Names'!J16 -> Pernod Ricard | C16: 60.06 | D16: 65.27 | E16: 63.59 | F16: 54.32 | G16: 59.16 | H16: 56.62 | I16: 59.98 | J16: 65.23 | K16: 65.53 | L16: 53.92 | M16: 53.96 | N16: 52.09
B17: ='Enter Company Names'!J17 -> FILA Fabbrica Italiana Lapis d Affni SpA | C17: 50.65 | D17: 56.88 | E17: 56.32 | F17: 46 | G17: 48.57 | H17: 49.03 | I17: 50.45 | J17: 55.49 | K17: 53.35 | L17: 55.31 | M17: 54.98 | N17: 55.43
B18: ='Enter Company Names'!J18 -> Coty Inc. | C18: 55.3 | D18: 59.82 | E18: 57.8 | F18: 50.86 | G18: 54.1 | H18: 54.56 | I18: 62.23 | J18: 63.69 | K18: 59.75 | L18: 55.91 | M18: 59.08 | N18: 54.73
B19: ='Enter Company Names'!J19 -> Barnes & Noble, Inc. | C19: 48.03 | D19: 42.21 | E19: 42.2 | F19: 39.88 | G19: 40.94 | H19: 36.99 | I19: 39.54 | J19: 40.46 | K19: 40.89 | L19: 40.6 | M19: 40.94 | N19: 38.59
B20: ='Enter Company Names'!J20 -> 3M Company | C20: 55.65 | D20: 60.42 | E20: 44.98 | F20: 54.86 | G20: 54.33 | H20: 50.76 | I20: 59.73 | J20: 54.94 | K20: 47.94 | L20: 60.04 | M20: 55.33 | N20: 58.39
B21: ='Enter Company Names'!J21 -> Newell Rubbermaid Inc. | C21: 50.68 | D21: 56.19 | E21: 52.41 | F21: 48.75 | G21: 49.22 | H21: 49.29 | I21: 52.11 | J21: 50.33 | K21: 49.18 | L21: 59.05 | M21: 56.74 | N21: 54.53
B22: ='Enter Company Names'!J22 -> Procter & Gamble Company | C22: 57.06 | D22: 58.38 | E22: 56.38 | F22: 58.86 | G22: 58.3 | H22: 56.62 | I22: 60.08 | J22: 63.78 | K22: 62.96 | L22: 59.27 | M22: 56.45 | N22: 57.75
B23: ='Enter Company Names'!J23 -> Unilever PLC | C23: 58.49 | D23: 61.64 | E23: 61.54 | F23: 58.02 | G23: 57.61 | H23: 61.17 | I23: 63.64 | J23: 64.66 | K23: 63.94 | L23: 59.58 | M23: 55.15 | N23: 57.58
B24: ='Enter Company Names'!J24 -> Church & Dwight Co., Inc. | C24: 53.56 | D24: 58.55 | E24: 59.23 | F24: 48.18 | G24: 48.37 | H24: 51.46 | I24: 57.45 | J24: 62.92 | K24: 63.98 | L24: 49.96 | M24: 54.36 | N24: 52.99
B25: ='Enter Company Names'!J25 -> Edgewell Personal Care Company | C25: 52.51 | D25: 56.26 | E25: 52.48 | F25: 50.4 | G25: 49.15 | H25: 54.54 | I25: 55.96 | J25: 56.72 | K25: 54.74 | L25: 56.03 | M25: 54.35 | N25: 53.42
B26: ='Enter Company Names'!J26 -> BIC | C26: 59.86 | D26: 60.68 | E26: 56.31 | F26: 57.87 | G26: 61.34 | H26: 61.03 | I26: 57.83 | J26: 59.51 | K26: 53.85 | L26: 55.35 | M26: 58.2 | N26: 55.65
B27: ='Enter Company Names'!J27 -> Johnson & Johnson | C27: 61.78 | D27: 64.08 | E27: 55.89 | F27: 58.19 | G27: 58.53 | H27: 58.94 | I27: 62.61 | J27: 62.88 | K27: 62.99 | L27: 60.84 | M27: 56.35 | N27: 58.88
B28: ='Enter Company Names'!J28 -> Amazon.com, Inc. | C28: 52.4 | D28: 51.6 | E28: 49.25 | F28: 51.4 | G28: 49.2 | H28: 48.86 | I28: 52.68 | J28: 50.19 | K28: 48.78 | L28: 55.19 | M28: 50.65 | N28: 53.37
B29: ='Enter Company Names'!J29 -> Groupe Danone | C29: 61.6 | D29: 65.85 | E29: 59.68 | F29: 59.39 | G29: 62.67 | H29: 58.68 | I29: 63.54 | J29: 68.44 | K29: 65.93 | L29: 60.69 | M29: 60.01 | N29: 59.44
B30: ='Enter Company Names'!J30 -> Walmart Inc. | C30: 53.46 | D30: 56.77 | E30: 54.5 | F30: 52.97 | G30: 49.92 | H30: 50.27 | I30: 57.64 | J30: 55.13 | K30: 59.92 | L30: 56.54 | M30: 52.63 | N30: 55.02
B31: ='Enter Company Names'!J31 -> Carrefour | C31: 58.83 | D31: 63.3 | E31: 59.76 | F31: 59.3 | G31: 60.55 | H31: 56.44 | I31: 58.31 | J31: 61.97 | K31: 63.1 | L31: 56.59 | M31: 56.22 | N31: 54.5

Sheet TNFD Score Overview
A4: Instructions for TNFD Calculator (Continued)
A5: 1. The company names will pull from Enter Company Names sheet.
A6: 2. Click "Calculate" to update CSRHub scores applied to TNFD topics.
A9: ="For "&A15&"" -> For American Well Corp | B9: GHG emissions | C9: Total spatial footprint | D9: Extent of land/ freshwater/ ocean-use change | E9: Pollutants released to soil split by type | F9: Wastewater discharged | G9: Waste generation and disposal | H9: Plastic pollution | I9: Non-GHG air pollutants | J9: Water withdrawal and consumption from areas of water scarcity | K9: Quantity of high-risk natural commodities sourced from land/ocean/ freshwater | L9: Measures against unintentional introduction of invasive alien species (IAS). | M9: Ecosystem condition | N9: Species extinction risk | O9: Risk | P9: Opportunity
A10: Average Rating | B10: =AVERAGEIF(B16:B217,"<>0") -> 56.7745625 | C10: =AVERAGEIF(C16:C217,"<>0") -> 56.85484375 | D10: 56.5939375 | E10: 57.18425 | F10: 56.784375 | G10: 57.17475 | H10: 56.22871875 | I10: 57.2966875 | J10: 55.75278125 | K10: 56.6710625 | L10: 56.7598125 | M10: 56.7693125 | N10: 56.3884375 | O10: 56.1975 | P10: 56.1975
A11: Best Rating | B11: =MAX(B16:B217) -> 63.5805 | C11: =MAX(C16:C217) -> 64.7765 | D11: 64.201 | E11: 65.5225 | F11: 64.6225 | G11: 65.494 | H11: 62.8 | I11: 65.745 | J11: 62.2575 | K11: 64.2975 | L11: 64.504 | M11: 64.5325 | N11: 63.6895 | O11: 62.902 | P11: 62.902
A12: Worst Rating | B12: =MIN(B16:B217) -> 39.839 | C12: =MIN(C16:C217) -> 40.383 | D12: 40.311 | E12: 40.474 | F12: 40.287 | G12: 40.3565 | H12: 41.1445 | I12: 40.3135 | J12: 41.753 | K12: 41.473 | L12: 40.0885 | M12: 40.206 | N12: 40.254 | O12: 40.296 | P12: 40.296
A14: Company Name | B14: GHG emissions | C14: Total spatial footprint | D14: Extent of land/ freshwater/ ocean-use change | E14: Pollutants released to soil split by type | F14: Wastewater discharged | G14: Waste generation and disposal | H14: Plastic pollution | I14: Non-GHG air pollutants | J14: Water withdrawal and consumption from areas of water scarcity | K14: Quantity of high-risk natural commodities sourced from land/ocean/ freshwater | L14: Measures against unintentional introduction of invasive alien species (IAS). | M14: Ecosystem condition | N14: Species extinction risk | O14: Risk | P14: Opportunity
A15: ='Enter Company Names'!J15 -> American Well Corp | B15: =SUMPRODUCT('CSRHub Ratings'!C15:N15,'TNFD Mapping'!$C$15:$N$15) -> 44.2295 | C15: =SUMPRODUCT('CSRHub Ratings'!$C15:$N15,'TNFD Mapping'!$C$16:$N$16) -> 48.6785 | D15: =SUMPRODUCT('CSRHub Ratings'!$C15:$N15,'TNFD Mapping'!$C$17:$N$17) -> 49.319 | E15: =SUMPRODUCT('CSRHub Ratings'!$C15:$N15,'TNFD Mapping'!$C$18:$N$18) -> 48.3725 | F15: =SUMPRODUCT('CSRHub Ratings'!$C15:$N15,'TNFD Mapping'!$C$19:$N$19) -> 48.8885 | G15: =SUMPRODUCT('CSRHub Ratings'!$C15:$N15,'TNFD Mapping'!$C$20:$N$20) -> 48.2 | H15: =SUMPRODUCT('CSRHub Ratings'!$C15:$N15,'TNFD Mapping'!$C$21:$N$21) -> 49.136 | I15: =SUMPRODUCT('CSRHub Ratings'!$C15:$N15,'TNFD Mapping'!$C$22:$N$22) -> 47.435 | J15: =SUMPRODUCT('CSRHub Ratings'!$C15:$N15,'TNFD Mapping'!$C$23:$N$23) -> 50.9795 | K15: =SUMPRODUCT('CSRHub Ratings'!$C15:$N15,'TNFD Mapping'!$C$24:$N$24) -> 48.6305 | L15: =SUMPRODUCT('CSRHub Ratings'!$C15:$N15,'TNFD Mapping'!$C$25:$N$25) -> 47.282 | M15: =SUMPRODUCT('CSRHub Ratings'!$C15:$N15,'TNFD Mapping'!$C$26:$N$26) -> 47.4545 | N15: =SUMPRODUCT('CSRHub Ratings'!$C15:$N15,'TNFD Mapping'!$C$27:$N$27) -> 48.3155 | O15: =SUMPRODUCT('CSRHub Ratings'!$C15:$N15,'TNFD Mapping'!$C$28:$N$28) -> 49.79 | P15: =SUMPRODUCT('CSRHub Ratings'!$C15:$N15,'TNFD Mapping'!$C$29:$N$29) -> 49.79
A16: ='Enter Company Names'!J16 -> Pernod Ricard | B16: =SUMPRODUCT('CSRHub Ratings'!C16:N16,'TNFD Mapping'!$C$15:$N$15) -> 59.338 | C16: =SUMPRODUCT('CSRHub Ratings'!$C16:$N16,'TNFD Mapping'!$C$16:$N$16) -> 61.08 | D16: =SUMPRODUCT('CSRHub Ratings'!$C16:$N16,'TNFD Mapping'!$C$17:$N$17) -> 60.438 | E16: =SUMPRODUCT('CSRHub Ratings'!$C16:$N16,'TNFD Mapping'!$C$18:$N$18) -> 62.3155 | F16: =SUMPRODUCT('CSRHub Ratings'!$C16:$N16,'TNFD Mapping'!$C$19:$N$19) -> 61.0015 | G16: =SUMPRODUCT('CSRHub Ratings'!$C16:$N16,'TNFD Mapping'!$C$20:$N$20) -> 62.222 | H16: =SUMPRODUCT('CSRHub Ratings'!$C16:$N16,'TNFD Mapping'!$C$21:$N$21) -> 62.6595 | I16: =SUMPRODUCT('CSRHub Ratings'!$C16:$N16,'TNFD Mapping'!$C$22:$N$22) -> 62.192 | J16: =SUMPRODUCT('CSRHub Ratings'!$C16:$N16,'TNFD Mapping'!$C$23:$N$23) -> 58.762 | K16: =SUMPRODUCT('CSRHub Ratings'!$C16:$N16,'TNFD Mapping'!$C$24:$N$24) -> 60.853 | L16: =SUMPRODUCT('CSRHub Ratings'!$C16:$N16,'TNFD Mapping'!$C$25:$N$25) -> 59.691 | M16: =SUMPRODUCT('CSRHub Ratings'!$C16:$N16,'TNFD Mapping'!$C$26:$N$26) -> 59.7845 | N16: =SUMPRODUCT('CSRHub Ratings'!$C16:$N16,'TNFD Mapping'!$C$27:$N$27) -> 58.6575 | O16: =SUMPRODUCT('CSRHub Ratings'!$C16:$N16,'TNFD Mapping'!$C$28:$N$28) -> 58.146 | P16: =SUMPRODUCT('CSRHub Ratings'!$C16:$N16,'TNFD Mapping'!$C$29:$N$29) -> 58.146
A17: ='Enter Company Names'!J17 -> FILA Fabbrica Italiana Lapis d Affni SpA | B17: =SUMPRODUCT('CSRHub Ratings'!C17:N17,'TNFD Mapping'!$C$15:$N$15) -> 52.6355 | C17: =SUMPRODUCT('CSRHub Ratings'!$C17:$N17,'TNFD Mapping'!$C$16:$N$16) -> 54.844 | D17: =SUMPRODUCT('CSRHub Ratings'!$C17:$N17,'TNFD Mapping'!$C$17:$N$17) -> 54.734 | E17: =SUMPRODUCT('CSRHub Ratings'!$C17:$N17,'TNFD Mapping'!$C$18:$N$18) -> 54.7655 | F17: =SUMPRODUCT('CSRHub Ratings'!$C17:$N17,'TNFD Mapping'!$C$19:$N$19) -> 54.7595 | G17: =SUMPRODUCT('CSRHub Ratings'!$C17:$N17,'TNFD Mapping'!$C$20:$N$20) -> 54.788 | H17: =SUMPRODUCT('CSRHub Ratings'!$C17:$N17,'TNFD Mapping'!$C$21:$N$21) -> 55.511 | I17: =SUMPRODUCT('CSRHub Ratings'!$C17:$N17,'TNFD Mapping'!$C$22:$N$22) -> 55.002 | J17: =SUMPRODUCT('CSRHub Ratings'!$C17:$N17,'TNFD Mapping'!$C$23:$N$23) -> 53.656 | K17: =SUMPRODUCT('CSRHub Ratings'!$C17:$N17,'TNFD Mapping'!$C$24:$N$24) -> 54.2505 | L17: =SUMPRODUCT('CSRHub Ratings'!$C17:$N17,'TNFD Mapping'!$C$25:$N$25) -> 55.373 | M17: =SUMPRODUCT('CSRHub Ratings'!$C17:$N17,'TNFD Mapping'!$C$26:$N$26) -> 55.3505 | N17: =SUMPRODUCT('CSRHub Ratings'!$C17:$N17,'TNFD Mapping'!$C$27:$N$27) -> 55.2995 | O17: =SUMPRODUCT('CSRHub Ratings'!$C17:$N17,'TNFD Mapping'!$C$28:$N$28) -> 54.912 | P17: =SUMPRODUCT('CSRHub Ratings'!$C17:$N17,'TNFD Mapping'!$C$29:$N$29) -> 54.912
A18: ='Enter Company Names'!J18 -> Coty Inc. | B18: =SUMPRODUCT('CSRHub Ratings'!C18:N18,'TNFD Mapping'!$C$15:$N$15) -> 61.2995 | C18: =SUMPRODUCT('CSRHub Ratings'!$C18:$N18,'TNFD Mapping'!$C$16:$N$16) -> 60.439 | D18: =SUMPRODUCT('CSRHub Ratings'!$C18:$N18,'TNFD Mapping'!$C$17:$N$17) -> 59.794 | E18: =SUMPRODUCT('CSRHub Ratings'!$C18:$N18,'TNFD Mapping'!$C$18:$N$18) -> 60.9205 | F18: =SUMPRODUCT('CSRHub Ratings'!$C18:$N18,'TNFD Mapping'!$C$19:$N$19) -> 60.0245 | G18: =SUMPRODUCT('CSRHub Ratings'!$C18:$N18,'TNFD Mapping'!$C$20:$N$20) -> 60.703 | H18: =SUMPRODUCT('CSRHub Ratings'!$C18:$N18,'TNFD Mapping'!$C$21:$N$21) -> 59.322 | I18: =SUMPRODUCT('CSRHub Ratings'!$C18:$N18,'TNFD Mapping'!$C$22:$N$22) -> 61.097 | J18: =SUMPRODUCT('CSRHub Ratings'!$C18:$N18,'TNFD Mapping'!$C$23:$N$23) -> 57.471 | K18: =SUMPRODUCT('CSRHub Ratings'!$C18:$N18,'TNFD Mapping'!$C$24:$N$24) -> 59.608 | L18: =SUMPRODUCT('CSRHub Ratings'!$C18:$N18,'TNFD Mapping'!$C$25:$N$25) -> 60.528 | M18: =SUMPRODUCT('CSRHub Ratings'!$C18:$N18,'TNFD Mapping'!$C$26:$N$26) -> 60.7455 | N18: =SUMPRODUCT('CSRHub Ratings'!$C18:$N18,'TNFD Mapping'!$C$27:$N$27) -> 60.2845 | O18: =SUMPRODUCT('CSRHub Ratings'!$C18:$N18,'TNFD Mapping'!$C$28:$N$28) -> 58.632 | P18: =SUMPRODUCT('CSRHub Ratings'!$C18:$N18,'TNFD Mapping'!$C$29:$N$29) -> 58.632
A19: ='Enter Company Names'!J19 -> Barnes & Noble, Inc. | B19: =SUMPRODUCT('CSRHub Ratings'!C19:N19,'TNFD Mapping'!$C$15:$N$15) -> 39.839 | C19: =SUMPRODUCT('CSRHub Ratings'!$C19:$N19,'TNFD Mapping'!$C$16:$N$16) -> 40.383 | D19: =SUMPRODUCT('CSRHub Ratings'!$C19:$N19,'TNFD Mapping'!$C$17:$N$17) -> 40.311 | E19: =SUMPRODUCT('CSRHub Ratings'!$C19:$N19,'TNFD Mapping'!$C$18:$N$18) -> 40.474 | F19: =SUMPRODUCT('CSRHub Ratings'!$C19:$N19,'TNFD Mapping'!$C$19:$N$19) -> 40.287 | G19: =SUMPRODUCT('CSRHub Ratings'!$C19:$N19,'TNFD Mapping'!$C$20:$N$20) -> 40.3565 | H19: =SUMPRODUCT('CSRHub Ratings'!$C19:$N19,'TNFD Mapping'!$C$21:$N$21) -> 41.1445 | I19: =SUMPRODUCT('CSRHub Ratings'!$C19:$N19,'TNFD Mapping'!$C$22:$N$22) -> 40.3135 | J19: =SUMPRODUCT('CSRHub Ratings'!$C19:$N19,'TNFD Mapping'!$C$23:$N$23) -> 41.753 | K19: =SUMPRODUCT('CSRHub Ratings'!$C19:$N19,'TNFD Mapping'!$C$24:$N$24) -> 41.473 | L19: =SUMPRODUCT('CSRHub Ratings'!$C19:$N19,'TNFD Mapping'!$C$25:$N$25) -> 40.0885 | M19: =SUMPRODUCT('CSRHub Ratings'!$C19:$N19,'TNFD Mapping'!$C$26:$N$26) -> 40.206 | N19: =SUMPRODUCT('CSRHub Ratings'!$C19:$N19,'TNFD Mapping'!$C$27:$N$27) -> 40.254 | O19: =SUMPRODUCT('CSRHub Ratings'!$C19:$N19,'TNFD Mapping'!$C$28:$N$28) -> 40.296 | P19: =SUMPRODUCT('CSRHub Ratings'!$C19:$N19,'TNFD Mapping'!$C$29:$N$29) -> 40.296
A20: ='Enter Company Names'!J20 -> 3M Company | B20: =SUMPRODUCT('CSRHub Ratings'!C20:N20,'TNFD Mapping'!$C$15:$N$15) -> 57.978 | C20: =SUMPRODUCT('CSRHub Ratings'!$C20:$N20,'TNFD Mapping'!$C$16:$N$16) -> 53.7855 | D20: =SUMPRODUCT('CSRHub Ratings'!$C20:$N20,'TNFD Mapping'!$C$17:$N$17) -> 53.608 | E20: =SUMPRODUCT('CSRHub Ratings'!$C20:$N20,'TNFD Mapping'!$C$18:$N$18) -> 53.2435 | F20: =SUMPRODUCT('CSRHub Ratings'!$C20:$N20,'TNFD Mapping'!$C$19:$N$19) -> 53.5885 | G20: =SUMPRODUCT('CSRHub Ratings'!$C20:$N20,'TNFD Mapping'!$C$20:$N$20) -> 53.3965 | H20: =SUMPRODUCT('CSRHub Ratings'!$C20:$N20,'TNFD Mapping'!$C$21:$N$21) -> 49.7725 | I20: =SUMPRODUCT('CSRHub Ratings'!$C20:$N20,'TNFD Mapping'!$C$22:$N$22) -> 54.0965 | J20: =SUMPRODUCT('CSRHub Ratings'!$C20:$N20,'TNFD Mapping'!$C$23:$N$23) -> 53.5725 | K20: =SUMPRODUCT('CSRHub Ratings'!$C20:$N20,'TNFD Mapping'!$C$24:$N$24) -> 54.2225 | L20: =SUMPRODUCT('CSRHub Ratings'!$C20:$N20,'TNFD Mapping'!$C$25:$N$25) -> 55.8805 | M20: =SUMPRODUCT('CSRHub Ratings'!$C20:$N20,'TNFD Mapping'!$C$26:$N$26) -> 55.7275 | N20: =SUMPRODUCT('CSRHub Ratings'!$C20:$N20,'TNFD Mapping'!$C$27:$N$27) -> 55.7665 | O20: =SUMPRODUCT('CSRHub Ratings'!$C20:$N20,'TNFD Mapping'!$C$28:$N$28) -> 55.328 | P20: =SUMPRODUCT('CSRHub Ratings'!$C20:$N20,'TNFD Mapping'!$C$29:$N$29) -> 55.328
A21: ='Enter Company Names'!J21 -> Newell Rubbermaid Inc. | B21: =SUMPRODUCT('CSRHub Ratings'!C21:N21,'TNFD Mapping'!$C$15:$N$15) -> 52.6905 | C21: =SUMPRODUCT('CSRHub Ratings'!$C21:$N21,'TNFD Mapping'!$C$16:$N$16) -> 51.9545 | D21: =SUMPRODUCT('CSRHub Ratings'!$C21:$N21,'TNFD Mapping'!$C$17:$N$17) -> 52.107 | E21: =SUMPRODUCT('CSRHub Ratings'!$C21:$N21,'TNFD Mapping'!$C$18:$N$18) -> 51.3665 | F21: =SUMPRODUCT('CSRHub Ratings'!$C21:$N21,'TNFD Mapping'!$C$19:$N$19) -> 51.7865 | G21: =SUMPRODUCT('CSRHub Ratings'!$C21:$N21,'TNFD Mapping'!$C$20:$N$20) -> 51.256 | H21: =SUMPRODUCT('CSRHub Ratings'!$C21:$N21,'TNFD Mapping'!$C$21:$N$21) -> 51.834 | I21: =SUMPRODUCT('CSRHub Ratings'!$C21:$N21,'TNFD Mapping'!$C$22:$N$22) -> 51.371 | J21: =SUMPRODUCT('CSRHub Ratings'!$C21:$N21,'TNFD Mapping'!$C$23:$N$23) -> 52.3295 | K21: =SUMPRODUCT('CSRHub Ratings'!$C21:$N21,'TNFD Mapping'!$C$24:$N$24) -> 51.744 | L21: =SUMPRODUCT('CSRHub Ratings'!$C21:$N21,'TNFD Mapping'!$C$25:$N$25) -> 52.662 | M21: =SUMPRODUCT('CSRHub Ratings'!$C21:$N21,'TNFD Mapping'!$C$26:$N$26) -> 52.7725 | N21: =SUMPRODUCT('CSRHub Ratings'!$C21:$N21,'TNFD Mapping'!$C$27:$N$27) -> 53.4135 | O21: =SUMPRODUCT('CSRHub Ratings'!$C21:$N21,'TNFD Mapping'!$C$28:$N$28) -> 53.966 | P21: =SUMPRODUCT('CSRHub Ratings'!$C21:$N21,'TNFD Mapping'!$C$29:$N$29) -> 53.966
A22: ='Enter Company Names'!J22 -> Procter & Gamble Company | B22: =SUMPRODUCT('CSRHub Ratings'!C22:N22,'TNFD Mapping'!$C$15:$N$15) -> 60.0425 | C22: =SUMPRODUCT('CSRHub Ratings'!$C22:$N22,'TNFD Mapping'!$C$16:$N$16) -> 61.2045 | D22: =SUMPRODUCT('CSRHub Ratings'!$C22:$N22,'TNFD Mapping'!$C$17:$N$17) -> 60.862 | E22: =SUMPRODUCT('CSRHub Ratings'!$C22:$N22,'TNFD Mapping'!$C$18:$N$18) -> 61.8315 | F22: =SUMPRODUCT('CSRHub Ratings'!$C22:$N22,'TNFD Mapping'!$C$19:$N$19) -> 61.2285 | G22: =SUMPRODUCT('CSRHub Ratings'!$C22:$N22,'TNFD Mapping'!$C$20:$N$20) -> 61.8965 | H22: =SUMPRODUCT('CSRHub Ratings'!$C22:$N22,'TNFD Mapping'!$C$21:$N$21) -> 59.3575 | I22: =SUMPRODUCT('CSRHub Ratings'!$C22:$N22,'TNFD Mapping'!$C$22:$N$22) -> 61.9785 | J22: =SUMPRODUCT('CSRHub Ratings'!$C22:$N22,'TNFD Mapping'!$C$23:$N$23) -> 59.1755 | K22: =SUMPRODUCT('CSRHub Ratings'!$C22:$N22,'TNFD Mapping'!$C$24:$N$24) -> 60.604 | L22: =SUMPRODUCT('CSRHub Ratings'!$C22:$N22,'TNFD Mapping'!$C$25:$N$25) -> 60.8065 | M22: =SUMPRODUCT('CSRHub Ratings'!$C22:$N22,'TNFD Mapping'!$C$26:$N$26) -> 60.7415 | N22: =SUMPRODUCT('CSRHub Ratings'!$C22:$N22,'TNFD Mapping'!$C$27:$N$27) -> 60.0085 | O22: =SUMPRODUCT('CSRHub Ratings'!$C22:$N22,'TNFD Mapping'!$C$28:$N$28) -> 60.042 | P22: =SUMPRODUCT('CSRHub Ratings'!$C22:$N22,'TNFD Mapping'!$C$29:$N$29) -> 60.042
A23: ='Enter Company Names'!J23 -> Unilever PLC | B23: =SUMPRODUCT('CSRHub Ratings'!C23:N23,'TNFD Mapping'!$C$15:$N$15) -> 61.9645 | C23: =SUMPRODUCT('CSRHub Ratings'!$C23:$N23,'TNFD Mapping'!$C$16:$N$16) -> 61.516 | D23: =SUMPRODUCT('CSRHub Ratings'!$C23:$N23,'TNFD Mapping'!$C$17:$N$17) -> 61.126 | E23: =SUMPRODUCT('CSRHub Ratings'!$C23:$N23,'TNFD Mapping'!$C$18:$N$18) -> 62.3095 | F23: =SUMPRODUCT('CSRHub Ratings'!$C23:$N23,'TNFD Mapping'!$C$19:$N$19) -> 61.6015 | G23: =SUMPRODUCT('CSRHub Ratings'!$C23:$N23,'TNFD Mapping'!$C$20:$N$20) -> 62.431 | H23: =SUMPRODUCT('CSRHub Ratings'!$C23:$N23,'TNFD Mapping'!$C$21:$N$21) -> 61.9645 | I23: =SUMPRODUCT('CSRHub Ratings'!$C23:$N23,'TNFD Mapping'!$C$22:$N$22) -> 62.503 | J23: =SUMPRODUCT('CSRHub Ratings'!$C23:$N23,'TNFD Mapping'!$C$23:$N$23) -> 59.502 | K23: =SUMPRODUCT('CSRHub Ratings'!$C23:$N23,'TNFD Mapping'!$C$24:$N$24) -> 61.102 | L23: =SUMPRODUCT('CSRHub Ratings'!$C23:$N23,'TNFD Mapping'!$C$25:$N$25) -> 60.988 | M23: =SUMPRODUCT('CSRHub Ratings'!$C23:$N23,'TNFD Mapping'!$C$26:$N$26) -> 60.8665 | N23: =SUMPRODUCT('CSRHub Ratings'!$C23:$N23,'TNFD Mapping'!$C$27:$N$27) -> 59.9155 | O23: =SUMPRODUCT('CSRHub Ratings'!$C23:$N23,'TNFD Mapping'!$C$28:$N$28) -> 60.182 | P23: =SUMPRODUCT('CSRHub Ratings'!$C23:$N23,'TNFD Mapping'!$C$29:$N$29) -> 60.182
A24: ='Enter Company Names'!J24 -> Church & Dwight Co., Inc. | B24: =SUMPRODUCT('CSRHub Ratings'!C24:N24,'TNFD Mapping'!$C$15:$N$15) -> 57.6345 | C24: =SUMPRODUCT('CSRHub Ratings'!$C24:$N24,'TNFD Mapping'!$C$16:$N$16) -> 59.9835 | D24: =SUMPRODUCT('CSRHub Ratings'!$C24:$N24,'TNFD Mapping'!$C$17:$N$17) -> 59.54 | E24: =SUMPRODUCT('CSRHub Ratings'!$C24:$N24,'TNFD Mapping'!$C$18:$N$18) -> 60.961 | F24: =SUMPRODUCT('CSRHub Ratings'!$C24:$N24,'TNFD Mapping'!$C$19:$N$19) -> 59.968 | G24: =SUMPRODUCT('CSRHub Ratings'!$C24:$N24,'TNFD Mapping'!$C$20:$N$20) -> 60.8925 | H24: =SUMPRODUCT('CSRHub Ratings'!$C24:$N24,'TNFD Mapping'!$C$21:$N$21) -> 59.9975 | I24: =SUMPRODUCT('CSRHub Ratings'!$C24:$N24,'TNFD Mapping'!$C$22:$N$22) -> 60.7865 | J24: =SUMPRODUCT('CSRHub Ratings'!$C24:$N24,'TNFD Mapping'!$C$23:$N$23) -> 57.2245 | K24: =SUMPRODUCT('CSRHub Ratings'!$C24:$N24,'TNFD Mapping'!$C$24:$N$24) -> 58.9545 | L24: =SUMPRODUCT('CSRHub Ratings'!$C24:$N24,'TNFD Mapping'!$C$25:$N$25) -> 58.7255 | M24: =SUMPRODUCT('CSRHub Ratings'!$C24:$N24,'TNFD Mapping'!$C$26:$N$26) -> 58.794 | N24: =SUMPRODUCT('CSRHub Ratings'!$C24:$N24,'TNFD Mapping'!$C$27:$N$27) -> 57.938 | O24: =SUMPRODUCT('CSRHub Ratings'!$C24:$N24,'TNFD Mapping'!$C$28:$N$28) -> 56.842 | P24: =SUMPRODUCT('CSRHub Ratings'!$C24:$N24,'TNFD Mapping'!$C$29:$N$29) -> 56.842
A25: ='Enter Company Names'!J25 -> Edgewell Personal Care Company | B25: =SUMPRODUCT('CSRHub Ratings'!C25:N25,'TNFD Mapping'!$C$15:$N$15) -> 55.6165 | C25: =SUMPRODUCT('CSRHub Ratings'!$C25:$N25,'TNFD Mapping'!$C$16:$N$16) -> 55.256 | D25: =SUMPRODUCT('CSRHub Ratings'!$C25:$N25,'TNFD Mapping'!$C$17:$N$17) -> 54.992 | E25: =SUMPRODUCT('CSRHub Ratings'!$C25:$N25,'TNFD Mapping'!$C$18:$N$18) -> 55.4405 | F25: =SUMPRODUCT('CSRHub Ratings'!$C25:$N25,'TNFD Mapping'!$C$19:$N$19) -> 55.1105 | G25: =SUMPRODUCT('CSRHub Ratings'!$C25:$N25,'TNFD Mapping'!$C$20:$N$20) -> 55.394 | H25: =SUMPRODUCT('CSRHub Ratings'!$C25:$N25,'TNFD Mapping'!$C$21:$N$21) -> 54.0665 | I25: =SUMPRODUCT('CSRHub Ratings'!$C25:$N25,'TNFD Mapping'!$C$22:$N$22) -> 55.592 | J25: =SUMPRODUCT('CSRHub Ratings'!$C25:$N25,'TNFD Mapping'!$C$23:$N$23) -> 53.886 | K25: =SUMPRODUCT('CSRHub Ratings'!$C25:$N25,'TNFD Mapping'!$C$24:$N$24) -> 54.842 | L25: =SUMPRODUCT('CSRHub Ratings'!$C25:$N25,'TNFD Mapping'!$C$25:$N$25) -> 55.421 | M25: =SUMPRODUCT('CSRHub Ratings'!$C25:$N25,'TNFD Mapping'!$C$26:$N$26) -> 55.4675 | N25: =SUMPRODUCT('CSRHub Ratings'!$C25:$N25,'TNFD Mapping'!$C$27:$N$27) -> 55.2305 | O25: =SUMPRODUCT('CSRHub Ratings'!$C25:$N25,'TNFD Mapping'!$C$28:$N$28) -> 55.052 | P25: =SUMPRODUCT('CSRHub Ratings'!$C25:$N25,'TNFD Mapping'!$C$29:$N$29) -> 55.052
A26: ='Enter Company Names'!J26 -> BIC | B26: =SUMPRODUCT('CSRHub Ratings'!C26:N26,'TNFD Mapping'!$C$15:$N$15) -> 58.0035 | C26: =SUMPRODUCT('CSRHub Ratings'!$C26:$N26,'TNFD Mapping'!$C$16:$N$16) -> 57.254 | D26: =SUMPRODUCT('CSRHub Ratings'!$C26:$N26,'TNFD Mapping'!$C$17:$N$17) -> 56.778 | E26: =SUMPRODUCT('CSRHub Ratings'!$C26:$N26,'TNFD Mapping'!$C$18:$N$18) -> 57.2295 | F26: =SUMPRODUCT('CSRHub Ratings'!$C26:$N26,'TNFD Mapping'!$C$19:$N$19) -> 56.8435 | G26: =SUMPRODUCT('CSRHub Ratings'!$C26:$N26,'TNFD Mapping'!$C$20:$N$20) -> 57.102 | H26: =SUMPRODUCT('CSRHub Ratings'!$C26:$N26,'TNFD Mapping'!$C$21:$N$21) -> 56.7695 | I26: =SUMPRODUCT('CSRHub Ratings'!$C26:$N26,'TNFD Mapping'!$C$22:$N$22) -> 57.668 | J26: =SUMPRODUCT('CSRHub Ratings'!$C26:$N26,'TNFD Mapping'!$C$23:$N$23) -> 56.372 | K26: =SUMPRODUCT('CSRHub Ratings'!$C26:$N26,'TNFD Mapping'!$C$24:$N$24) -> 57.655 | L26: =SUMPRODUCT('CSRHub Ratings'!$C26:$N26,'TNFD Mapping'!$C$25:$N$25) -> 58.283 | M26: =SUMPRODUCT('CSRHub Ratings'!$C26:$N26,'TNFD Mapping'!$C$26:$N$26) -> 58.4105 | N26: =SUMPRODUCT('CSRHub Ratings'!$C26:$N26,'TNFD Mapping'!$C$27:$N$27) -> 58.2795 | O26: =SUMPRODUCT('CSRHub Ratings'!$C26:$N26,'TNFD Mapping'!$C$28:$N$28) -> 56.512 | P26: =SUMPRODUCT('CSRHub Ratings'!$C26:$N26,'TNFD Mapping'!$C$29:$N$29) -> 56.512
A27: ='Enter Company Names'!J27 -> Johnson & Johnson | B27: =SUMPRODUCT('CSRHub Ratings'!C27:N27,'TNFD Mapping'!$C$15:$N$15) -> 61.352 | C27: =SUMPRODUCT('CSRHub Ratings'!$C27:$N27,'TNFD Mapping'!$C$16:$N$16) -> 61.0015 | D27: =SUMPRODUCT('CSRHub Ratings'!$C27:$N27,'TNFD Mapping'!$C$17:$N$17) -> 60.807 | E27: =SUMPRODUCT('CSRHub Ratings'!$C27:$N27,'TNFD Mapping'!$C$18:$N$18) -> 61.5335 | F27: =SUMPRODUCT('CSRHub Ratings'!$C27:$N27,'TNFD Mapping'!$C$19:$N$19) -> 61.1335 | G27: =SUMPRODUCT('CSRHub Ratings'!$C27:$N27,'TNFD Mapping'!$C$20:$N$20) -> 61.66 | H27: =SUMPRODUCT('CSRHub Ratings'!$C27:$N27,'TNFD Mapping'!$C$21:$N$21) -> 59.0245 | I27: =SUMPRODUCT('CSRHub Ratings'!$C27:$N27,'TNFD Mapping'!$C$22:$N$22) -> 61.649 | J27: =SUMPRODUCT('CSRHub Ratings'!$C27:$N27,'TNFD Mapping'!$C$23:$N$23) -> 60.3925 | K27: =SUMPRODUCT('CSRHub Ratings'!$C27:$N27,'TNFD Mapping'!$C$24:$N$24) -> 61.1575 | L27: =SUMPRODUCT('CSRHub Ratings'!$C27:$N27,'TNFD Mapping'!$C$25:$N$25) -> 60.574 | M27: =SUMPRODUCT('CSRHub Ratings'!$C27:$N27,'TNFD Mapping'!$C$26:$N$26) -> 60.4475 | N27: =SUMPRODUCT('CSRHub Ratings'!$C27:$N27,'TNFD Mapping'!$C$27:$N$27) -> 59.7945 | O27: =SUMPRODUCT('CSRHub Ratings'!$C27:$N27,'TNFD Mapping'!$C$28:$N$28) -> 60.388 | P27: =SUMPRODUCT('CSRHub Ratings'!$C27:$N27,'TNFD Mapping'!$C$29:$N$29) -> 60.388
A28: ='Enter Company Names'!J28 -> Amazon.com, Inc. | B28: =SUMPRODUCT('CSRHub Ratings'!C28:N28,'TNFD Mapping'!$C$15:$N$15) -> 51.9465 | C28: =SUMPRODUCT('CSRHub Ratings'!$C28:$N28,'TNFD Mapping'!$C$16:$N$16) -> 50.4065 | D28: =SUMPRODUCT('CSRHub Ratings'!$C28:$N28,'TNFD Mapping'!$C$17:$N$17) -> 50.495 | E28: =SUMPRODUCT('CSRHub Ratings'!$C28:$N28,'TNFD Mapping'!$C$18:$N$18) -> 50.154 | F28: =SUMPRODUCT('CSRHub Ratings'!$C28:$N28,'TNFD Mapping'!$C$19:$N$19) -> 50.472 | G28: =SUMPRODUCT('CSRHub Ratings'!$C28:$N28,'TNFD Mapping'!$C$20:$N$20) -> 50.29 | H28: =SUMPRODUCT('CSRHub Ratings'!$C28:$N28,'TNFD Mapping'!$C$21:$N$21) -> 49.8965 | I28: =SUMPRODUCT('CSRHub Ratings'!$C28:$N28,'TNFD Mapping'!$C$22:$N$22) -> 50.431 | J28: =SUMPRODUCT('CSRHub Ratings'!$C28:$N28,'TNFD Mapping'!$C$23:$N$23) -> 51.0255 | K28: =SUMPRODUCT('CSRHub Ratings'!$C28:$N28,'TNFD Mapping'!$C$24:$N$24) -> 50.7855 | L28: =SUMPRODUCT('CSRHub Ratings'!$C28:$N28,'TNFD Mapping'!$C$25:$N$25) -> 51.077 | M28: =SUMPRODUCT('CSRHub Ratings'!$C28:$N28,'TNFD Mapping'!$C$26:$N$26) -> 50.941 | N28: =SUMPRODUCT('CSRHub Ratings'!$C28:$N28,'TNFD Mapping'!$C$27:$N$27) -> 50.987 | O28: =SUMPRODUCT('CSRHub Ratings'!$C28:$N28,'TNFD Mapping'!$C$28:$N$28) -> 51.636 | P28: =SUMPRODUCT('CSRHub Ratings'!$C28:$N28,'TNFD Mapping'!$C$29:$N$29) -> 51.636
A29: ='Enter Company Names'!J29 -> Groupe Danone | B29: =SUMPRODUCT('CSRHub Ratings'!C29:N29,'TNFD Mapping'!$C$15:$N$15) -> 63.5805 | C29: =SUMPRODUCT('CSRHub Ratings'!$C29:$N29,'TNFD Mapping'!$C$16:$N$16) -> 64.7765 | D29: =SUMPRODUCT('CSRHub Ratings'!$C29:$N29,'TNFD Mapping'!$C$17:$N$17) -> 64.201 | E29: =SUMPRODUCT('CSRHub Ratings'!$C29:$N29,'TNFD Mapping'!$C$18:$N$18) -> 65.5225 | F29: =SUMPRODUCT('CSRHub Ratings'!$C29:$N29,'TNFD Mapping'!$C$19:$N$19) -> 64.6225 | G29: =SUMPRODUCT('CSRHub Ratings'!$C29:$N29,'TNFD Mapping'!$C$20:$N$20) -> 65.494 | H29: =SUMPRODUCT('CSRHub Ratings'!$C29:$N29,'TNFD Mapping'!$C$21:$N$21) -> 62.8 | I29: =SUMPRODUCT('CSRHub Ratings'!$C29:$N29,'TNFD Mapping'!$C$22:$N$22) -> 65.745 | J29: =SUMPRODUCT('CSRHub Ratings'!$C29:$N29,'TNFD Mapping'!$C$23:$N$23) -> 62.2575 | K29: =SUMPRODUCT('CSRHub Ratings'!$C29:$N29,'TNFD Mapping'!$C$24:$N$24) -> 64.2975 | L29: =SUMPRODUCT('CSRHub Ratings'!$C29:$N29,'TNFD Mapping'!$C$25:$N$25) -> 64.504 | M29: =SUMPRODUCT('CSRHub Ratings'!$C29:$N29,'TNFD Mapping'!$C$26:$N$26) -> 64.5325 | N29: =SUMPRODUCT('CSRHub Ratings'!$C29:$N29,'TNFD Mapping'!$C$27:$N$27) -> 63.6895 | O29: =SUMPRODUCT('CSRHub Ratings'!$C29:$N29,'TNFD Mapping'!$C$28:$N$28) -> 62.902 | P29: =SUMPRODUCT('CSRHub Ratings'!$C29:$N29,'TNFD Mapping'!$C$29:$N$29) -> 62.902
A30: ='Enter Company Names'!J30 -> Walmart Inc. | B30: =SUMPRODUCT('CSRHub Ratings'!C30:N30,'TNFD Mapping'!$C$15:$N$15) -> 56.1245 | C30: =SUMPRODUCT('CSRHub Ratings'!$C30:$N30,'TNFD Mapping'!$C$16:$N$16) -> 55.811 | D30: =SUMPRODUCT('CSRHub Ratings'!$C30:$N30,'TNFD Mapping'!$C$17:$N$17) -> 56.045 | E30: =SUMPRODUCT('CSRHub Ratings'!$C30:$N30,'TNFD Mapping'!$C$18:$N$18) -> 56.181 | F30: =SUMPRODUCT('CSRHub Ratings'!$C30:$N30,'TNFD Mapping'!$C$19:$N$19) -> 56.17 | G30: =SUMPRODUCT('CSRHub Ratings'!$C30:$N30,'TNFD Mapping'!$C$20:$N$20) -> 56.3005 | H30: =SUMPRODUCT('CSRHub Ratings'!$C30:$N30,'TNFD Mapping'!$C$21:$N$21) -> 55.429 | I30: =SUMPRODUCT('CSRHub Ratings'!$C30:$N30,'TNFD Mapping'!$C$22:$N$22) -> 55.8215 | J30: =SUMPRODUCT('CSRHub Ratings'!$C30:$N30,'TNFD Mapping'!$C$23:$N$23) -> 55.945 | K30: =SUMPRODUCT('CSRHub Ratings'!$C30:$N30,'TNFD Mapping'!$C$24:$N$24) -> 55.446 | L30: =SUMPRODUCT('CSRHub Ratings'!$C30:$N30,'TNFD Mapping'!$C$25:$N$25) -> 54.6025 | M30: =SUMPRODUCT('CSRHub Ratings'!$C30:$N30,'TNFD Mapping'!$C$26:$N$26) -> 54.483 | N30: =SUMPRODUCT('CSRHub Ratings'!$C30:$N30,'TNFD Mapping'!$C$27:$N$27) -> 54.233 | O30: =SUMPRODUCT('CSRHub Ratings'!$C30:$N30,'TNFD Mapping'!$C$28:$N$28) -> 55.848 | P30: =SUMPRODUCT('CSRHub Ratings'!$C30:$N30,'TNFD Mapping'!$C$29:$N$29) -> 55.848
A31: ='Enter Company Names'!J31 -> Carrefour | B31: =SUMPRODUCT('CSRHub Ratings'!C31:N31,'TNFD Mapping'!$C$15:$N$15) -> 58.3475 | C31: =SUMPRODUCT('CSRHub Ratings'!$C31:$N31,'TNFD Mapping'!$C$16:$N$16) -> 59.982 | D31: =SUMPRODUCT('CSRHub Ratings'!$C31:$N31,'TNFD Mapping'!$C$17:$N$17) -> 59.665 | E31: =SUMPRODUCT('CSRHub Ratings'!$C31:$N31,'TNFD Mapping'!$C$18:$N$18) -> 60.6995 | F31: =SUMPRODUCT('CSRHub Ratings'!$C31:$N31,'TNFD Mapping'!$C$19:$N$19) -> 59.9525 | G31: =SUMPRODUCT('CSRHub Ratings'!$C31:$N31,'TNFD Mapping'!$C$20:$N$20) -> 60.6135 | H31: =SUMPRODUCT('CSRHub Ratings'!$C31:$N31,'TNFD Mapping'!$C$21:$N$21) -> 60.1105 | I31: =SUMPRODUCT('CSRHub Ratings'!$C31:$N31,'TNFD Mapping'!$C$22:$N$22) -> 60.5005 | J31: =SUMPRODUCT('CSRHub Ratings'!$C31:$N31,'TNFD Mapping'!$C$23:$N$23) -> 58.72 | K31: =SUMPRODUCT('CSRHub Ratings'!$C31:$N31,'TNFD Mapping'!$C$24:$N$24) -> 59.742 | L31: =SUMPRODUCT('CSRHub Ratings'!$C31:$N31,'TNFD Mapping'!$C$25:$N$25) -> 58.9525 | M31: =SUMPRODUCT('CSRHub Ratings'!$C31:$N31,'TNFD Mapping'!$C$26:$N$26) -> 59.0385 | N31: =SUMPRODUCT('CSRHub Ratings'!$C31:$N31,'TNFD Mapping'!$C$27:$N$27) -> 58.4635 | O31: =SUMPRODUCT('CSRHub Ratings'!$C31:$N31,'TNFD Mapping'!$C$28:$N$28) -> 58.476 | P31: =SUMPRODUCT('CSRHub Ratings'!$C31:$N31,'TNFD Mapping'!$C$29:$N$29) -> 58.476

Sheet TNFD Mapping
B7: CSRHub TNFD Mapping
B8: Below is a mapping of CSRHub data to the SDGs. The model was developed by our partner Valutus, under the title "Materiality Matters." You can learn more about Valutus and its work here https://valutus.com/.
B11: Reach out to CSRHub to request a custom mapping.
B14: TNFD Description | C14: Community Dev & Philanthropy | D14: Human Rights & Supply Chain | E14: Product | F14: Compensation & Benefits | G14: Diversity & Labor Rights | H14: Training, Health & Safety | I14: Energy & Climate Change | J14: Environment Policy & Reporting | K14: Resource Management | L14: Board | M14: Leadership Ethics | N14: Transparency & Reporting
B15: GHG emissions | I15: 0.55 | J15: 0.2 | M15: 0.15 | N15: 0.1
B16: Total spatial footprint | J16: 0.4 | K16: 0.25 | M16: 0.2 | N16: 0.15
B17: Extent of land/ freshwater/ ocean-use change | J17: 0.3 | K17: 0.3 | M17: 0.2 | N17: 0.2
B18: Pollutants released to soil split by type | J18: 0.45 | K18: 0.3 | M18: 0.15 | N18: 0.1
B19: Wastewater discharged | J19: 0.35 | K19: 0.3 | M19: 0.15 | N19: 0.2
B20: Waste generation and disposal | J20: 0.45 | K20: 0.3 | M20: 0.1 | N20: 0.15
B21: Plastic pollution | E21: 0.45 | J21: 0.25 | K21: 0.15 | M21: 0.05 | N21: 0.1
B22: Non-GHG air pollutants | J22: 0.55 | K22: 0.2 | M22: 0.1 | N22: 0.15
B23: Water withdrawal and consumption from areas of water scarcity | C23: 0.2 | K23: 0.35 | M23: 0.2 | N23: 0.25
B24: Quantity of high-risk natural commodities sourced from land/ocean/ freshwater | C24: 0.15 | J24: 0.35 | K24: 0.2 | M24: 0.15 | N24: 0.15
B25: Measures against unintentional introduction of invasive alien species (IAS). | J25: 0.55 | M25: 0.2 | N25: 0.25
B26: Ecosystem condition | J26: 0.55 | M26: 0.25 | N26: 0.2
B27: Species extinction risk | J27: 0.45 | M27: 0.35 | N27: 0.2
B28: Risk | J28: 0.2 | K28: 0.2 | L28: 0.2 | M28: 0.2 | N28: 0.2
B29: Opportunity | J29: 0.2 | K29: 0.2 | L29: 0.2 | M29: 0.2 | N29: 0.2
